fUST/lending_fUST_20251018
["ID","MTS","AMOUNT","RATE_DAILY","PERIOD"]
[391767001,1760787042284,-1168.3516802,0.00028,2]
[391767002,1760787042292,-402.78104431,0.00028,3]
[391767003,1760787042301,-151.0,0.00028,30]
[391767004,1760787042312,-151.0,0.00028,30]
[391767005,1760787042321,-151.0,0.00028,30]
[391767006,1760787042331,-151.0,0.00028,30]
[391767007,1760787042340,-151.0,0.00028,30]
[391767008,1760787042349,-151.0,0.00028,30]
[391767009,1760787042358,-301.648661,0.00028,30]
[391767010,1760787042367,-151.0,0.00028,30]
[391767011,1760787042378,-151.0,0.00028,30]
[391767012,1760787042388,-338.56650527,0.00028,2]
[391767013,1760787042397,-343.92111219,0.00028044,2]
[391767014,1760787042407,-500.0,0.00028059,5]
[391767015,1760787042416,-660.0,0.00028086,2]
[391767016,1760787042426,-190.0,0.00028088,7]
[391767017,1760787042435,-403.76308444,0.00028096,2]
[391767018,1760787042444,-403.76308444,0.00028096,2]
[391767019,1760787042454,-403.76308444,0.00028096,2]
[391767020,1760787042463,-23842.06,0.000281,7]
[391767021,1760787042472,-151.0,0.000281,14]
[391767022,1760787042481,-151.0,0.000281,30]
[391767023,1760787042490,-151.0,0.000281,30]
[391767024,1760787042499,-151.0,0.000281,30]
[391767025,1760787042508,-151.0,0.000281,30]
[391767026,1760787042517,-151.0,0.000281,30]
[391767027,1760787042526,-151.0,0.000281,30]
[391767028,1760787042535,-151.0,0.000281,30]
[391767029,1760787042544,-151.0,0.000281,30]
[391767030,1760787042553,-3500.0,0.0002816,5]
[391767031,1760787042562,-3500.0,0.0002816,5]
[391767032,1760787042571,-1024.43239068,0.00028173,2]
[391767033,1760787042581,-3167.1,0.000282,2]
[391767034,1760787042590,-2786.36,0.000282,2]
[391767035,1760787042599,-1253.29,0.00028218,5]
[391767036,1760787042608,-199.0,0.00028219,18]
[391767037,1760787042617,-5057.73,0.00028219,2]
[391767038,1760787042626,-152.960521,0.00028246,10]
[391767039,1760787042635,-403.76308444,0.00028265,4]
[391767040,1760787042644,-403.76308444,0.00028265,4]
[391767041,1760787042654,-403.76308444,0.00028265,4]
[391767042,1760787042663,-152.960521,0.00028299,3]
[391767043,1760787042672,-500.0,0.00028333,5]
[391767044,1760787042682,-270.13631335,0.00028411,30]
[391767045,1760787042692,-403.76308444,0.00028434,6]
[391767046,1760787042702,-403.76308444,0.00028434,6]
[391767047,1760787042712,-403.76308444,0.00028434,6]
[391767048,1760787042724,-402.78104431,0.00028451,2]
[391767049,1760787042733,-160.0,0.00028451,2]
[391767050,1760787042743,-160.0,0.00028451,2]
[391767051,1760787042752,-160.0,0.00028451,2]
[391767052,1760787042761,-1253.29,0.00028492,5]
[391767053,1760787042770,-199.0,0.00028493,19]
[391767054,1760787042779,-350.0,0.00028493,5]
[391767055,1760787042788,-138330.2703993,0.000285,7]
[391767056,1760787042797,-6842.62487853,0.000285,7]
[391767057,1760787042806,-474.28829542,0.000285,2]
[391767058,1760787042816,-151.0,0.000285,7]
[391767059,1760787042825,-151.0,0.000285,30]
[391767060,1760787042834,-151.0,0.000285,30]
[391767061,1760787042843,-151.0,0.000285,30]
[391767062,1760787042853,-151.0,0.000285,30]
[391767064,1760787042862,-151.0,0.000285,30]
[391767065,1760787042871,-151.0,0.000285,30]
[391767066,1760787042880,-151.0,0.000285,30]
[391767067,1760787042889,-151.0,0.000285,30]
[391767068,1760787042899,-151.0,0.000285,30]
[391767069,1760787042908,-151.0,0.000285,30]
[391767070,1760787042918,-151.0,0.000285,30]
[391767071,1760787042927,-151.0,0.000285,30]
[391767072,1760787042936,-279.638619,0.000285,30]
[391767073,1760787042945,-151.0,0.000285,30]
[391767075,1760787042955,-151.0,0.000285,30]
[391767076,1760787042964,-151.0,0.000285,30]
[391767077,1760787042973,-151.0,0.000285,30]
[391767078,1760787042984,-151.0,0.000285,30]
[391767079,1760787042993,-612.272005,0.000285,30]
[391767080,1760787043002,-450.0,0.00028516,5]
[391767081,1760787043012,-155.0,0.00028521,29]
[391767082,1760787043021,-270.13631335,0.00028548,30]
[391767083,1760787043030,-151.0,0.00028548,30]
[391767084,1760787043039,-151.0,0.00028548,30]
[391767085,1760787043048,-219.623818,0.00028548,30]
[391767086,1760787043057,-151.0,0.00028548,30]
[391767087,1760787043066,-151.0,0.00028548,30]
[391767088,1760787043075,-151.0,0.00028548,30]
[391767089,1760787043084,-403.76308444,0.00028603,8]
[391767090,1760787043095,-403.76308444,0.00028603,8]
[391767091,1760787043104,-403.76308444,0.00028603,8]
[391767092,1760787043114,-500.0,0.00028607,5]
[391767093,1760787043123,-760.0,0.00028634,2]
[391767094,1760787043132,-371.07277894,0.00028644,2]
[391767095,1760787043142,-151.0,0.00028644,30]
[391767096,1760787043151,-270.13631335,0.00028685,30]
[391767097,1760787043162,-4000.0,0.00028708,5]
[391767098,1760787043174,-4000.0,0.00028708,5]
[391767099,1760787043184,-587.0,0.0002872,2]
[391767100,1760787043194,-1062.33638913,0.00028721,2]
[391767101,1760787043203,-988.43093777,0.0002876,2]
[391767102,1760787043212,-4000.0,0.0002876,5]
[391767103,1760787043221,-250.16976181,0.0002876,2]
[391767104,1760787043230,-2317.52641926,0.0002876,2]
[391767105,1760787043239,-1253.29,0.00028766,5]
[391767106,1760787043248,-199.0,0.00028767,20]
[391767107,1760787043258,-403.76308444,0.00028772,10]
[391767108,1760787043267,-403.76308444,0.00028772,10]
[391767109,1760787043276,-403.76308444,0.00028772,10]
[391767110,1760787043285,-169.72854076,0.000288,7]
[391767111,1760787043294,-474.28829542,0.000288,2]
[391767112,1760787043303,-152.960521,0.000288,10]
[391767113,1760787043313,-270.13631335,0.00028822,30]
[391767114,1760787043333,-500.0,0.00028881,5]
[391767115,1760787043347,-500.0,0.00028888,5]
[391767116,1760787043355,-152.960521,0.00028889,3]
[391767118,1760787043364,-270.13631335,0.00028959,30]
[391767119,1760787043373,-2015.07697018,0.00029,2]
[391767120,1760787043382,-881.49174328,0.00029,2]
[391767121,1760787043391,-502.14410151,0.00029,7]
[391767122,1760787043401,-3167.1,0.00029,2]
[391767123,1760787043410,-2786.36,0.00029,2]
[391767124,1760787043420,-1224.63,0.00029,2]
[391767125,1760787043429,-1253.29,0.0002904,5]
[391767126,1760787043438,-199.0,0.00029041,21]
[391767127,1760787043447,-450.0,0.00029041,5]
[391767128,1760787043457,-1123.83451013,0.00029042,120]
[391767129,1760787043466,-550.0,0.00029064,5]
[391767130,1760787043475,-270.13631335,0.00029096,30]
[391767131,1760787043483,-474.28829542,0.000291,2]
[391767132,1760787043493,-500.0,0.00029155,5]
[391767133,1760787043502,-1224.63,0.00029174,2]
[391767134,1760787043511,-860.0,0.00029182,2]
[391767135,1760787043521,-23842.06,0.000292,7]
[391767136,1760787043532,-270.13631335,0.00029233,30]
[391767137,1760787043541,-160.0,0.0002924,3]
[391767138,1760787043551,-398.22444569,0.00029244,2]
[391767139,1760787043560,-500.0,0.00029253,7]
[391767140,1760787043570,-4025.84491105,0.00029256,5]
[391767141,1760787043579,-4500.0,0.00029256,5]
[391767142,1760787043589,-1101.64283553,0.00029269,2]
[391767143,1760787043599,-1120.77724024,0.000293,2]
[391767144,1760787043611,-168.48305814,0.000293,2]
[391767145,1760787043619,-474.28829542,0.000293,2]
[391767146,1760787043628,-1253.29,0.00029314,5]
[391767147,1760787043637,-199.0,0.00029315,22]
[391767148,1760787043647,-1224.63,0.00029348,2]
[391767149,1760787043657,-270.13631335,0.0002937,30]
[391767150,1760787043666,-500.0,0.00029429,5]
[391767151,1760787043676,-187.01117833,0.000295,120]
[391767152,1760787043686,-1120.77724024,0.000295,2]
[391767153,1760787043695,-168.48305814,0.000295,2]
[391767154,1760787043705,-1631.445633,0.000295,2]
[391767155,1760787043714,-270.13631335,0.00029507,30]
[391767156,1760787043723,-71108.05283662,0.0002956,2]
[391767157,1760787043732,-219.8428947,0.0002957,30]
[391767158,1760787043742,-1253.29,0.00029588,5]
[391767159,1760787043751,-199.0,0.00029589,23]
[391767160,1760787043760,-5057.73,0.00029589,4]
[391767161,1760787043770,-550.0,0.00029589,5]
[391767162,1760787043779,-474.28829542,0.000296,2]
[391767163,1760787043788,-502.13637244,0.00029612,5]
[391767164,1760787043798,-270.13631335,0.00029644,30]
[391767165,1760787043807,-276.86094454,0.00029688,30]
[391767166,1760787043817,-500.0,0.00029703,5]
[391767167,1760787043826,-500.0,0.00029708,7]
[391767168,1760787043835,-960.0,0.0002973,2]
[391767169,1760787043844,-270.13631335,0.00029781,30]
[391767170,1760787043853,-3167.1,0.000298,2]
[391767171,1760787043862,-2786.36,0.000298,2]
[391767172,1760787043871,-1120.77724024,0.000298,2]
[391767173,1760787043880,-168.48305814,0.000298,2]
[391767174,1760787043890,-5000.0,0.00029804,5]
[391767175,1760787043899,-500.0,0.00029813,2]
[391767176,1760787043909,-1142.40362045,0.00029817,2]
[391767177,1760787043918,-425.37611244,0.00029844,2]
[391767178,1760787043927,-1253.29,0.00029862,5]
[391767179,1760787043936,-199.0,0.00029863,24]
[391767180,1760787043945,-500.0,0.00029875,7]
[391767181,1760787043954,-5477.8238466,0.000299,2]
[391767182,1760787043963,-270.13631335,0.00029918,30]
[391767183,1760787043972,-5899.50808433,0.00029953,2]
[391767184,1760787043981,-500.0,0.00029976,5]
[391767185,1760787043991,-374.8372547,0.0003,30]
[391767186,1760787044000,-25043.28855227,0.0003,15]
[391767187,1760787044009,-3416.38337545,0.0003,2]
[391767188,1760787044018,-525.37951108,0.0003,2]
[391767189,1760787044028,-5928.62460561,0.0003,2]
[391767190,1760787044037,-200.18632911,0.0003,2]
[391767191,1760787044046,-7290.11507159,0.0003,2]
[391767192,1760787044055,-150.0,0.0003,2]
[391767193,1760787044064,-150.0,0.0003,2]
[391767194,1760787044073,-301.64994618,0.0003,120]
[391767195,1760787044083,-183.1820543,0.0003,120]
[391767196,1760787044091,-785.81490251,0.0003,60]
[391767197,1760787044101,-250.0,0.0003,7]
[391767198,1760787044110,-165.87175,0.0003,2]
[391767199,1760787044119,-853.01,0.0003,2]
[391767200,1760787044128,-300.0,0.0003,120]
[391767201,1760787044138,-151.0,0.0003,7]
[391767202,1760787044148,-151.0,0.0003,30]
[391767203,1760787044158,-151.0,0.0003,30]
[391767204,1760787044167,-151.0,0.0003,30]
[391767205,1760787044176,-151.0,0.0003,7]
[391767206,1760787044186,-151.0,0.0003,7]
[391767207,1760787044195,-151.0,0.0003,7]
[391767208,1760787044205,-151.0,0.0003,7]
[391767209,1760787044214,-194.857416,0.0003,7]
[391767210,1760787044223,-151.0,0.0003,30]
[391767211,1760787044232,-151.0,0.0003,30]
[391767212,1760787044242,-151.0,0.0003,30]
[391767213,1760787044251,-151.0,0.0003,30]
[391767214,1760787044261,-151.0,0.0003,30]
[391767215,1760787044270,-151.0,0.0003,30]
[391767216,1760787044279,-151.0,0.0003,30]
[391767217,1760787044289,-151.0,0.0003,30]
[391767218,1760787044299,-262.832609,0.0003,30]
[391767219,1760787044308,-151.0,0.0003,30]
[391767220,1760787044319,-151.0,0.0003,30]
[391767221,1760787044328,-1000.0,0.0003,2]
[391767222,1760787044337,-151.0,0.0003,30]
[391767223,1760787044346,-151.0,0.0003,30]
[391767224,1760787044355,-151.0,0.0003,30]
[391767225,1760787044363,-253.028116,0.0003,30]
[391767226,1760787044372,-151.0,0.0003,30]
[391767227,1760787044382,-1500.0,0.0003,2]
[391767228,1760787044391,-1000.0,0.0003,4]
[391767229,1760787044401,-151.0,0.0003,30]
[391767230,1760787044410,-612.272005,0.0003,30]
[391767231,1760787044420,-411.09292072,0.00030036,12]
[391767232,1760787044430,-112580.56981594,0.000301,3]
[391767233,1760787044439,-247.63419227,0.000301,3]
[391767234,1760787044448,-1077.34117926,0.000301,2]
[391767235,1760787044457,-189.21008692,0.000301,2]
[391767236,1760787044466,-193.99532146,0.000301,2]
[391767237,1760787044475,-704.98425132,0.000301,2]
[391767238,1760787044484,-160.144196,0.000301,2]
[391767239,1760787044493,-208.80050278,0.000301,2]
[391767240,1760787044503,-1120.77724024,0.000301,2]
[391767241,1760787044511,-168.48305814,0.000301,2]
[391767242,1760787044520,-340.38720997,0.0003012,7]
[391767243,1760787044529,-285.41324671,0.0003013,2]
[391767244,1760787044539,-1253.29,0.00030136,5]
[391767245,1760787044547,-199.0,0.00030136,25]
[391767246,1760787044556,-2018.42299926,0.00030136,2]
[391767247,1760787044565,-300.0,0.00030136,120]
[391767248,1760787044573,-858.81131,0.00030137,120]
[391767249,1760787044583,-304.84595855,0.00030137,5]
[391767250,1760787044592,-500.0,0.00030149,7]
[391767251,1760787044601,-271.88742116,0.0003015,120]
[391767252,1760787044610,-670.4140214,0.0003022,2]
[391767253,1760787044623,-500.0,0.0003025,5]
[391767254,1760787044632,-185.409303,0.00030255,60]
[391767255,1760787044641,-160.0,0.00030262,4]
[391767256,1760787044651,-197.0,0.00030263,120]
[391767257,1760787044660,-251.27593264,0.00030273,120]
[391767258,1760787044670,-1060.0,0.00030278,2]
[391767259,1760787044679,-500.0,0.00030289,7]
[391767260,1760787044689,-23842.06,0.000303,7]
[391767261,1760787044698,-89337.04200384,0.000303,4]
[391767267,1760787079197,30000.0,0.0003401,60]
[391767268,1760787172164,417.15472785,0.00024149,2]
[391767269,1760787460255,151.0,0.00022,6]
[391767270,1760787460549,151.0,0.000198,2]
[391767271,1760787460855,151.0,0.000176,2]
[391767272,1760787465378,-151.0,0.000242,6]
[391767273,1760787764868,1058.48908244,0.00024079,12]
[391767276,1760787845169,500.0,0.00034006,120]
[391767277,1760787845447,500.0,0.00034006,120]
[391767278,1760787845685,500.0,0.00034006,120]
[391767279,1760787846037,500.0,0.00034006,120]
[391767280,1760787846273,500.0,0.00034006,120]
[391767281,1760787846545,500.0,0.00034006,120]
[391767282,1760787846810,486.02794444,0.00034006,120]
[391767283,1760788002257,185.647526,0.00023412,2]
[391767370,1760788238352,-177.39088944,0.0002432,2]
[391767371,1760788238362,-546.64795101,0.00024356,2]
[391767372,1760788238372,-278.0,0.00024372,2]
[391767373,1760788238382,-300.0,0.00024372,2]
[391767374,1760788238392,-300.0,0.00024372,2]
[391767375,1760788238401,-300.0,0.00024372,2]
[391767376,1760788238411,-1200.0,0.00024372,2]
[391767377,1760788238421,-892.30314888,0.00024373,2]
[391767378,1760788238430,-6829.41259812,0.00024373,2]
[391767379,1760788238439,-1024.37440381,0.00024383,4]
[391767381,1760788238449,-854.2589148,0.00024442,2]
[391767382,1760788238459,-74000.0,0.00024449,2]
[391767383,1760788238468,-7769.07943788,0.00024449,2]
[391767384,1760788238477,-803.66355229,0.00024456,2]
[391767385,1760788238487,-500.0,0.00024457,5]
[391767386,1760788238496,-370000.0,0.00024457,2]
[391767387,1760788238505,-500.0,0.00024473,2]
[391767388,1760788238515,-500.0,0.00024473,2]
[391767389,1760788238524,-500.0,0.00024473,2]
[391767390,1760788238534,-500.0,0.00024473,2]
[391767391,1760788238543,-500.0,0.00024473,2]
[391767392,1760788238553,-500.0,0.00024473,2]
[391767393,1760788238562,-500.0,0.00024473,2]
[391767394,1760788238571,-500.0,0.00024473,2]
[391767395,1760788238580,-500.0,0.00024473,2]
[391767396,1760788238589,-500.0,0.00024473,2]
[391767397,1760788238599,-500.0,0.00024473,2]
[391767398,1760788238609,-500.0,0.00024473,2]
[391767399,1760788238618,-500.0,0.00024473,2]
[391767400,1760788238629,-500.0,0.00024473,2]
[391767401,1760788238638,-500.0,0.00024473,2]
[391767402,1760788238647,-500.0,0.00024473,2]
[391767403,1760788238657,-500.0,0.00024473,2]
[391767404,1760788238667,-500.0,0.00024473,2]
[391767405,1760788238676,-500.0,0.00024473,2]
[391767406,1760788238685,-500.0,0.00024473,2]
[391767407,1760788238694,-500.0,0.00024473,2]
[391767408,1760788238703,-500.0,0.00024473,2]
[391767409,1760788238713,-462.17415029,0.00024473,2]
[391767410,1760788238722,-500.0,0.00024473,2]
[391767411,1760788238732,-500.0,0.00024473,2]
[391767412,1760788238742,-150.0,0.00024473,2]
[391767413,1760788238751,-500.0,0.00024473,2]
[391767414,1760788238761,-23842.06,0.000245,7]
[391767415,1760788238771,-402.78104431,0.000245,7]
[391767416,1760788238780,-160.0,0.000245,7]
[391767417,1760788238789,-150.0,0.00024556,2]
[391767418,1760788238799,-300.0,0.0002461,2]
[391767419,1760788238809,-500.0,0.00024657,2]
[391767420,1760788238818,-1000.0,0.00024657,2]
[391767421,1760788238827,-1000.0,0.00024657,2]
[391767422,1760788238836,-500.0,0.00024657,2]
[391767423,1760788238846,-500.0,0.00024657,2]
[391767424,1760788238855,-500.0,0.00024657,2]
[391767425,1760788238865,-500.0,0.00024657,2]
[391767426,1760788238874,-456.26,0.00024657,2]
[391767427,1760788238884,-500.0,0.00024657,2]
[391767428,1760788238893,-1000.0,0.00024657,2]
[391767429,1760788238902,-250.0,0.00024657,2]
[391767430,1760788238912,-250.0,0.00024657,2]
[391767431,1760788238923,-250.0,0.00024657,2]
[391767432,1760788238932,-250.0,0.00024657,2]
[391767433,1760788238941,-500.0,0.00024657,2]
[391767434,1760788238951,-500.0,0.00024657,2]
[391767435,1760788238960,-500.0,0.00024657,2]
[391767436,1760788238970,-500.0,0.00024657,2]
[391767437,1760788238981,-572.52,0.00024657,2]
[391767438,1760788238991,-186.05955477,0.00024685,14]
[391767439,1760788239001,-500.0,0.00024731,5]
[391767440,1760788239011,-433.84619058,0.00024763,2]
[391767441,1760788239021,-356.0,0.0002477,2]
[391767442,1760788239030,-500.0,0.00024773,2]
[391767443,1760788239040,-500.0,0.00024773,2]
[391767444,1760788239050,-500.0,0.00024773,2]
[391767445,1760788239059,-500.0,0.00024773,2]
[391767446,1760788239069,-500.0,0.00024773,2]
[391767447,1760788239079,-500.0,0.00024773,2]
[391767448,1760788239088,-500.0,0.00024773,2]
[391767449,1760788239098,-500.0,0.00024773,2]
[391767450,1760788239107,-506.95259966,0.00024773,2]
[391767451,1760788239117,-500.8873304,0.00024773,2]
[391767452,1760788239126,-500.0,0.00024773,2]
[391767453,1760788239136,-500.0,0.00024773,2]
[391767454,1760788239145,-500.0,0.00024773,2]
[391767455,1760788239154,-500.0,0.00024773,2]
[391767456,1760788239164,-500.0,0.00024773,2]
[391767457,1760788239175,-500.0,0.00024773,2]
[391767458,1760788239185,-500.40809648,0.00024773,2]
[391767459,1760788239195,-596.93575148,0.00024773,2]
[391767460,1760788239205,-158.4,0.00024773,2]
[391767461,1760788239216,-158.0,0.00024773,2]
[391767462,1760788239228,-158.4,0.00024773,2]
[391767463,1760788239238,-160.0,0.00024773,2]
[391767464,1760788239247,-411.63554078,0.00024773,2]
[391767465,1760788239258,-160.0,0.00024773,2]
[391767466,1760788239268,-158.2,0.00024773,2]
[391767467,1760788239278,-158.4,0.00024773,2]
[391767468,1760788239288,-158.4,0.00024773,2]
[391767469,1760788239299,-188.4,0.00024773,2]
[391767470,1760788239308,-158.4,0.00024773,2]
[391767471,1760788239317,-158.0,0.00024773,2]
[391767472,1760788239327,-160.0,0.00024773,2]
[391767473,1760788239336,-158.4,0.00024773,2]
[391767474,1760788239346,-158.0,0.00024773,2]
[391767475,1760788239356,-158.0,0.00024773,2]
[391767476,1760788239365,-159.67236693,0.00024773,2]
[391767477,1760788239375,-236.0,0.00024773,2]
[391767478,1760788239384,-158.4,0.00024773,2]
[391767479,1760788239393,-160.0,0.00024773,2]
[391767480,1760788239402,-158.0,0.00024773,2]
[391767481,1760788239412,-158.4,0.00024773,2]
[391767482,1760788239423,-158.0,0.00024773,2]
[391767483,1760788239432,-500.0,0.00024773,2]
[391767484,1760788239441,-500.0,0.00024773,2]
[391767485,1760788239451,-500.0,0.00024773,2]
[391767486,1760788239461,-508.61918935,0.00024773,2]
[391767487,1760788239470,-500.0,0.00024773,2]
[391767488,1760788239480,-500.0,0.00024773,2]
[391767489,1760788239490,-158.4,0.00024773,2]
[391767490,1760788239499,-500.0,0.00024773,2]
[391767491,1760788239508,-500.0,0.00024773,2]
[391767492,1760788239517,-500.0,0.00024773,2]
[391767493,1760788239526,-638.23397939,0.00024773,2]
[391767494,1760788239535,-500.93274379,0.00024773,2]
[391767495,1760788239544,-158.0,0.00024773,2]
[391767496,1760788239554,-159.76620504,0.00024773,2]
[391767497,1760788239563,-160.0,0.00024773,2]
[391767498,1760788239573,-159.0,0.00024773,2]
[391767499,1760788239582,-158.0,0.00024773,2]
[391767500,1760788239591,-500.0,0.00024773,2]
[391767501,1760788239601,-158.0,0.00024773,2]
[391767502,1760788239610,-158.4,0.00024773,2]
[391767503,1760788239620,-158.4,0.00024773,2]
[391767504,1760788239630,-160.0,0.00024773,2]
[391767505,1760788239641,-500.0,0.00024773,2]
[391767506,1760788239651,-237.76,0.00024773,2]
[391767507,1760788239660,-158.0,0.00024773,2]
[391767508,1760788239670,-158.4,0.00024773,2]
[391767509,1760788239679,-163.0,0.00024773,2]
[391767510,1760788239689,-170.0,0.00024773,2]
[391767511,1760788239698,-160.0,0.00024773,2]
[391767512,1760788239708,-156.0,0.00024773,2]
[391767513,1760788239717,-168.0,0.00024773,2]
[391767514,1760788239725,-160.0,0.00024773,2]
[391767515,1760788239734,-159.0,0.00024773,2]
[391767516,1760788239743,-158.4,0.00024773,2]
[391767517,1760788239754,-503.02205326,0.00024773,2]
[391767518,1760788239763,-500.0,0.00024773,2]
[391767519,1760788239772,-500.0,0.00024773,2]
[391767520,1760788239781,-158.0,0.00024773,2]
[391767521,1760788239791,-500.0,0.00024773,2]
[391767522,1760788239800,-500.0,0.00024773,2]
[391767523,1760788239810,-502.4314613,0.00024773,2]
[391767524,1760788239819,-500.87588779,0.00024773,2]
[391767525,1760788239831,-302.09325653,0.00024773,2]
[391767526,1760788239842,-500.0,0.00024773,2]
[391767527,1760788239852,-502.11051514,0.00024773,2]
[391767528,1760788239862,-500.0,0.00024773,2]
[391767529,1760788239871,-630.47138155,0.00024773,2]
[391767530,1760788239880,-500.0,0.00024773,2]
[391767531,1760788239889,-500.0,0.00024773,2]
[391767532,1760788239898,-500.0,0.00024773,2]
[391767533,1760788239907,-500.0,0.00024773,2]
[391767534,1760788239917,-6829.41259809,0.00024784,2]
[391767535,1760788239927,-10852.7936194,0.000248,2]
[391767536,1760788239936,-500.0,0.00024873,2]
[391767537,1760788239947,-500.0,0.00024873,2]
[391767538,1760788239956,-500.0,0.00024873,2]
[391767539,1760788239965,-150.0,0.00024873,2]
[391767540,1760788239975,-2713.19840484,0.0002488,2]
[391767541,1760788239984,-500.0,0.000249,2]
[391767542,1760788239994,-500.0,0.000249,2]
[391767543,1760788240003,-639.148264,0.000249,2]
[391767544,1760788240012,-360408.00014,0.000249,2]
[391767545,1760788240022,-203.99952286,0.0002492,2]
[391767546,1760788240031,-500.0,0.00024931,2]
[391767547,1760788240042,-300.0,0.00024945,20]
[391767548,1760788240051,-300.0,0.00024945,20]
[391767549,1760788240061,-300.0,0.00024945,20]
[391767550,1760788240070,-300.0,0.00024945,20]
[391767551,1760788240080,-300.0,0.00024945,20]
[391767552,1760788240089,-300.0,0.00024945,20]
[391767553,1760788240098,-300.0,0.00024945,20]
[391767554,1760788240107,-300.0,0.00024945,20]
[391767555,1760788240117,-300.0,0.00024945,20]
[391767556,1760788240127,-300.0,0.00024945,20]
[391767557,1760788240136,-300.0,0.00024945,20]
[391767558,1760788240146,-300.0,0.00024945,20]
[391767559,1760788240155,-300.0,0.00024945,20]
[391767560,1760788240165,-300.0,0.00024945,20]
[391767561,1760788240174,-300.0,0.00024945,20]
[391767562,1760788240184,-600.0,0.00024945,20]
[391767563,1760788240193,-432.0,0.0002498,2]
[391767564,1760788240203,-885.86649465,0.0002499,2]
[391767565,1760788240212,-152.960521,0.00024996,2]
[391767566,1760788240224,-4500.0,0.00025,2]
[391767567,1760788240233,-500.0,0.00025005,5]
[391767568,1760788240243,-152.960521,0.00025018,20]
[391767569,1760788240252,-1000.0,0.00025021,2]
[391767570,1760788240261,-1000.0,0.00025021,2]
[391767571,1760788240272,-1000.0,0.00025021,2]
[391767572,1760788240281,-1000.0,0.00025021,2]
[391767573,1760788240290,-1000.0,0.00025021,2]
[391767574,1760788240299,-1000.0,0.00025021,2]
[391767575,1760788240309,-1000.0,0.00025021,2]
[391767576,1760788240318,-152.960521,0.00025024,20]
[391767577,1760788240326,-152.960521,0.00025028,2]
[391767578,1760788240335,-6829.41259809,0.00025195,2]
[391767579,1760788240344,-500.0,0.00025205,2]
[391767580,1760788240353,-199.0,0.00025205,7]
[391767581,1760788240363,-159.18806778,0.00025234,7]
[391767582,1760788240372,-553.0,0.00025243,2]
[391767583,1760788240381,-500.0,0.00025279,5]
[391767584,1760788240390,-1000.0,0.00025321,2]
[391767585,1760788240399,-503.31910923,0.00025321,2]
[391767586,1760788240407,-1000.0,0.00025321,2]
[391767587,1760788240417,-1000.0,0.00025321,2]
[391767588,1760788240426,-1000.0,0.00025321,2]
[391767589,1760788240435,-1000.0,0.00025321,2]
[391767590,1760788240444,-250.0,0.00025421,2]
[391767591,1760788240455,-500.0,0.00025479,2]
[391767592,1760788240464,-199.0,0.00025479,8]
[391767593,1760788240473,-150.0,0.00025498,7]
[391767594,1760788240482,-1000.0,0.000255,2]
[391767596,1760788240491,-230.60815628,0.0002552,2]
[391767597,1760788240500,-904.39946828,0.00025526,2]
[391767599,1760788240510,-918.64355495,0.00025538,2]